Cogmind - Beta 13 X1 @@@ ROGUE MODE // 2023.08.15 @ 17:08:44 Player: VR-DUX Result: Self-destructed Performance ------------- Evolutions (2) 1000 Regions Visited (3) 600 Robots Destroyed (38) 190 Value Destroyed (839) 839 Prototype IDs (11) 220 Alien Tech Used (0) 0 Bonus (236) 236 TOTAL SCORE: 3085 Bonus ------- High Alert Combat Kills 11 Follower Combat Kills 244 Friendly Fire -19 Cogmind --------- Core Integrity 518/550 Matter 233/300 Energy 160/160 System Corruption 0% Temperature Cool (0) Movement Walking (125) Location -8/Materials Parts ------- > --- POWER (1) -------- Light Nuclear Core > --- PROPULSION (3) --- Carbon-fiber Leg Cargo Legs > --- UTILITY (5+2) ---- Improved Heat Sink Large Storage Unit Structural Scanner (+) Utility Shielding > --- WEAPON (2) ------- Light EM Pulse Cannon Grenade Launcher > --- INVENTORY (15) --- Light Deuterium Engine Light Nuclear Core Makeshift Flight Unit Small Storage Unit Medium Storage Unit Large Storage Unit Improved Sensor Array Improved Signal Interpreter V3-11A's Pendant Ion Cannon Barrage Gun Improved Light Cannon Battle Cannon Mining Laser Flamer Peak State ------------ > --- POWER ------------ Light Nuclear Core > --- PROPULSION ------- Carbon-fiber Leg Cargo Legs > --- UTILITY ---------- Improved Heat Sink Large Storage Unit Structural Scanner Utility Shielding > --- WEAPON ----------- Light EM Pulse Cannon Grenade Launcher > --- INVENTORY -------- Light Deuterium Engine Light Nuclear Core Makeshift Flight Unit Small Storage Unit Medium Storage Unit Large Storage Unit Improved Sensor Array Improved Signal Interpreter V3-11A's Pendant Ion Cannon Barrage Gun Improved Light Cannon Battle Cannon Mining Laser Flamer [Rating: 34] Favorites ----------- Power Subdweller Power Source Engine Subdweller Power Source Power Core Light Nuclear Core Propulsion Light Treads Treads Light Treads Leg Cargo Legs Utility Large Storage Unit Device Structural Scanner Storage Large Storage Unit Processor Signal Interpreter Protection Utility Shielding Weapon Mining Laser Energy Gun EM Pulse Gun Energy Cannon Light EM Pulse Cannon Ballistic Gun Autogun Ballistic Cannon Battle Cannon Launcher Grenade Launcher Special Weapon Mining Laser Build | -11 -10 -10 -8 ------- Run | Jun Mat Sub Mat Slots Evolved 4 | . . . 4 Power . | . . . . Propulsion 1 | . . . 1 Utility 3 | . . . 3 Weapon . | . . . . Parts Attached 46 | 1 26 11 8 Power 6 | . 2 3 1 Engine 5 | . 2 3 . Core 1 | . . . 1 Reactor . | . . . . Propulsion 15 | . 12 2 1 Treads 13 | . 12 1 . Leg 2 | . . 1 1 Wheel . | . . . . Hover . | . . . . Flight . | . . . . Utility 11 | 1 3 4 3 Device 8 | 1 2 3 2 Storage 1 | . 1 . . Processor 1 | . . 1 . Hackware . | . . . . Protection 1 | . . . 1 Artifact . | . . . . Weapon 14 | . 9 2 3 Energy Gun . | . . . . Energy Cannon 3 | . 1 . 2 Ballistic Gun 2 | . 2 . . Ballistic Cannon 4 | . 3 1 . Launcher 4 | . 3 . 1 Special Weapon 1 | . . 1 . Impact Weapon . | . . . . Slashing Weapon . | . . . . Piercing Weapon . | . . . . Special Melee Weapon . | . . . . Unidentified Prototypes 2 | . . 2 . Parts Lost . | . . . . Power . | . . . . Propulsion . | . . . . Utility . | . . . . Weapon . | . . . . Highest Loss Streak . | . . . . To Critical Strikes . | . . . . Average Slot Usage (%) 84 | . 98 81 62 Engine 9 | . 13 8 . Treads 11 | . 18 9 . Leg 7 | . 8 7 10 Device 16 | . 13 18 13 Storage 12 | . 14 12 7 Energy Cannon 1 | . 3 . 5 Ballistic Gun 1 | . 8 . . Ballistic Cannon 8 | . 4 10 1 Launcher 3 | . 9 1 4 Special Weapon 8 | . . 11 2 Naked Turns . | . . . . Heaviest Build 37 | 13 32 32 37 Greatest Support 70 | 20 40 55 70 Greatest Overweight (x) 5 | . 5 . . Average Overweight (x) . | . . . . Largest Inventory Capacity 15 | 8 15 15 15 Average Capacity 13 | 8 10 15 15 Most Carried 15 | 7 13 15 15 Average Carried 12 | 6 8 14 13 Final Capacity 15 | 8 15 15 15 Final Carried 15 | 7 13 14 15 Class Distribution -------------------- 100% | Mutant Dominant Class ---------------- Mutant | -10/Materials Mutant | -10/Subcaves Mutant | -8/Materials Resources | -11 -10 -10 -8 ----------- Run | Jun Mat Sub Mat Matter Collected 981 | 219 429 190 143 Remotely . | . . . . Salvage Created 1061 | 12 842 11 196 Parts 86 | 4 66 1 15 Haulers Intercepted 2 | . 2 . . Recyclers Shooed 1 | . . . 1 Parts Field Recycled . | . . . . Retrieved Matter . | . . . . Parts Self-Destructed 22 | . . 22 . Prevented . | . . . . Kills | -11 -10 -10 -8 ------- Run | Jun Mat Sub Mat Combat Hostiles Destroyed 21 | . 15 . 6 Guns 5 | . 5 . . Cannons 7 | . 6 . 1 AOE 9 | . 4 . 5 Classes Destroyed 11 | 1 7 . 3 Worker 2 | . 1 . 1 Builder 5 | . 4 . 1 Tunneler 1 | 1 . . . Hauler 2 | . 2 . . Recycler 3 | . 2 . 1 Operator 1 | . . . 1 Watcher 3 | . 3 . . Swarmer 6 | . 6 . . Grunt 13 | . 9 . 4 Duelist 1 | . . . 1 Sentry 1 | . . . 1 Best Kill Streak 7 | 1 6 . 7 Combat Bots Only 5 | . 5 . 3 Max Kills in Single Turn 3 | 1 3 . 2 Gunslinging . | . . . . Exploded 3 | . 3 . 1 Melee . | . . . . Uniques/NPCs Destroyed . | . . . . Combat | -11 -10 -10 -8 -------- Run | Jun Mat Sub Mat Damage Taken 840 | . 350 181 309 Core 113 | . 54 27 32 Absorbed by Shields . | . . . . Redirected to Shielding 20 | . . . 20 Regen/Repaired (Parts) 102 | . 76 . 26 Core Remaining (%) 83 | 100 . 67 . Volleys Fired 173 | 3 82 60 28 Largest 2 | 2 2 1 1 Hottest 100 | 60 60 100 80 Shots Fired 187 | 6 93 60 28 Gun 78 | 6 72 . . Cannon 49 | . 19 15 15 Launcher 15 | . 2 . 13 Special 45 | . . 45 . Kinetic 64 | 3 46 15 . Thermal 46 | . . 45 1 Explosive 15 | . 2 . 13 Electromagnetic 62 | 3 45 . 14 Robot Hit Streak 15 | 2 15 13 7 Robot Miss Streak 4 | 1 4 1 2 Penetration Max . | . . . . Secondary Targets . | . . . . Shots Hit Robots 101 | 3 69 13 16 Core Hits 62 | 1 34 3 24 Critical Kills . | . . . . Critical Parts Destroyed . | . . . . Critical Strikes 3 | . 2 1 . Blast 1 | . . 1 . Corrupt 2 | . 2 . . Melee Attacks . | . . . . Impact . | . . . . Slashing . | . . . . Piercing . | . . . . Sneak Attacks . | . . . . Combat Hostiles . | . . . . Follow-up Attacks . | . . . . Damage Inflicted 2800 | 54 1353 266 1127 Guns 793 | 54 739 . . Cannons 842 | . 392 266 184 Explosions 1165 | . 222 . 943 Melee . | . . . . Ramming . | . . . . Kinetic 886 | 39 581 266 . Thermal 68 | . 22 . 46 Explosive 1097 | . 200 . 897 Electromagnetic 749 | 15 550 . 184 Impact . | . . . . Slashing . | . . . . Piercing . | . . . . Highest Corruption . | . . . . Average Corruption . | . . . . Corruption Purged . | . . . . Corruption Blocked . | . . . . Overload Shots . | . . . . Overflow Damage 42 | . 27 . 15 Projectiles 24 | . 24 . . Explosions 18 | . 3 . 15 Melee . | . . . . Knockbacks 3 | . 1 2 . Impact . | . . . . Kinetic 3 | . 1 2 . Secondary . | . . . . Self-Inflicted Damage 162 | . 72 . 90 Shots 6 | . 2 . 4 Rammed . | . . . . Targets Rammed . | . . . . Kicked . | . . . . Crushed . | . . . . Highest Temperature 70 | . 70 . 12 Average Temperature 19 | . 20 . 8 Received Heat Transfer 285 | . 96 108 81 Siege Activations . | . . . . Robots Corrupted . | . . . . Combat Hostiles . | . . . . Parts Fried 4 | . 4 . . Impact Corruptions . | . . . . Robots Melted . | . . . . Combat Hostiles . | . . . . Parts Melted . | . . . . Heat Transferred 150 | . 50 . 100 Parts Sabotaged . | . . . . Parts Stolen . | . . . . Parts Stripped . | . . . . Power Chain Reactions 2 | . 1 . 1 Missiles Intercepted . | . . . . Alert | -11 -10 -10 -8 ------- Run | Jun Mat Sub Mat Peak Influence 454 | 5 342 . 454 Initial 3 | . 3 . . Average 154 | 3 171 . 101 Maximum Alert Level 2 | . 1 . 2 Low Security (%) 76 | 100 73 . 82 Level 1 23 | . 26 . 15 Level 2 . | . . . 2 Level 3 . | . . . . Level 4 . | . . . . Level 5 . | . . . . High Security . | . . . . Max Security . | . . . . Squads Dispatched 5 | . 3 . 2 Investigation 3 | . 3 . . Extermination . | . . . . Reinforcement 2 | . . . 2 Assault . | . . . . Garrison . | . . . . Intercept . | . . . . Searches Triggered . | . . . . Construction Impeded 1 | . . . 1 Haulers Reinforced . | . . . . Active Scanning Responses . | . . . . Cargo Convoy Interrupts . | . . . . Stealth | -11 -10 -10 -8 --------- Run | Jun Mat Sub Mat Distress Signals 3 | . 1 . 2 Communications Jammed . | . . . . Distress Signals . | . . . . Times Spotted 59 | . 19 26 14 Peak Tracking Total 5 | . 4 2 5 Tactical Retreats 5 | . 1 4 . Traps | -11 -10 -10 -8 ------- Run | Jun Mat Sub Mat Traps Triggered 4 | . 4 . . Indirectly . | . . . . Trap Hack Attempts . | . . . . Triggered . | . . . . Disarmed . | . . . . Reprogrammed . | . . . . Reused . | . . . . Traps Extracted . | . . . . Installed . | . . . . Triggered . | . . . . Machines | -11 -10 -10 -8 ---------- Run | Jun Mat Sub Mat Machines Disabled 7 | . 2 1 4 Max in Single Turn 1 | . 1 1 1 Garrison Access 1 | . . . 1 Machines Repaired . | . . . . Machines Sabotaged . | . . . . Overloaded Fab Kills . | . . . . Hacking | -11 -10 -10 -8 --------- Run | Jun Mat Sub Mat Machines Accessed 13 | . 8 2 3 Terminals 6 | . 5 . 1 Fabricators . | . . . . Repair Stations 2 | . 1 . 1 Recycling Units 2 | . 2 . . Scanalyzers . | . . . . Garrison Access 1 | . . . 1 Total Hacks 40 | . 24 10 6 Successful 20 | . 7 10 3 Failed 19 | . 16 . 3 Catastrophic 4 | . 4 . . Database Lockouts 1 | . 1 . . Manual 21 | . 18 . 3 Terminals 20 | . 17 . 3 Fabricators . | . . . . Repair Stations 5 | . 3 . 2 Recycling Units 4 | . 4 . . Scanalyzers . | . . . . Garrison Access 1 | . . . 1 Terminal Hacks 13 | . 3 10 . Record 9 | . . 9 . Robot Analysis 1 | . 1 . . Branch Access Points 1 | . 1 . . Zone Layout 1 | . 1 . . Derelict Proto ID Bank 1 | . . 1 . Fabricator Hacks . | . . . . Repair Station Hacks 4 | . 2 . 2 Scan Component 2 | . 1 . 1 Repair 2 | . 1 . 1 Recycling Unit Hacks 2 | . 2 . . Retrieve Components 2 | . 2 . . Scanalyzer . | . . . . Garrison Access Hacks 1 | . . . 1 Seal Access 1 | . . . 1 Unauthorized Hacks . | . . . . Terminals . | . . . . Fabricators . | . . . . Repair Stations . | . . . . Recycling Units . | . . . . Scanalyzers . | . . . . Garrison Access . | . . . . Data Cores Recovered . | . . . . Used . | . . . . Hacking Detections 10 | . 9 . 1 Full Trace Events 3 | . 3 . . Feedback Events . | . . . . Feedback Blocked . | . . . . Robot Schematics Acquired . | . . . . Robots Built . | . . . . Authchips . | . . . . Time . | . . . . Total Robot Build Rating . | . . . . Part Schematics Acquired . | . . . . Parts Built . | . . . . Authchips . | . . . . Time . | . . . . Total Part Build Rating . | . . . . Parts Repaired 2 | . 1 . 1 Time 39 | . 13 . 26 Parts Recycled . | . . . . Recycled Matter . | . . . . Retrieved Matter . | . . . . Retrieved Components 3 | . 3 . . Parts Scanalyzed . | . . . . Part Schematics Acquired . | . . . . Parts Damaged . | . . . . Bothacking | -11 -10 -10 -8 ------------ Run | Jun Mat Sub Mat Used RIF Installer . | . . . . Robots Hacked . | . . . . Non-combat . | . . . . Combat . | . . . . Robot Hacks Applied . | . . . . Relay Couplers Released . | . . . . Fabnet Peak Effective % . | . . . . Robots Rewired . | . . . . Allies Hacked . | . . . . Hacks Repelled . | . . . . Allies | -11 -10 -10 -8 -------- Run | Jun Mat Sub Mat Total Allies 14 | . . 14 . Largest Group 7 | . . 7 2 Highest-Rated Group 133 | . . 133 38 Highest-Rated Ally 19 | . . 19 19 Total Orders . | . . . . Ally Attacks 81 | . . 51 30 Total Damage 1091 | . . 649 442 Kills 11 | . . 6 5 Allies Corrupted . | . . . . Allies Melted . | . . . . Intel | -11 -10 -10 -8 ------- Run | Jun Mat Sub Mat Robot Analysis Total 1 | . 1 . . Derelict Logs Recovered 1 | . . 1 . Drone Launches . | . . . . Drone Recoveries . | . . . . Exploration | -11 -10 -10 -8 ------------- Run | Jun Mat Sub Mat Turns Passed 5607 | 23 1333 3905 346 Spaces Moved 3421 | 10 728 2495 188 Core 12 | . 12 . . Treads 1211 | . 466 745 . Legs 2198 | 10 250 1750 188 Wheels . | . . . . Hover . | . . . . Flight . | . . . . Fastest Speed 100 | 120 100 130 125 Average Speed 140 | 120 147 138 127 Slowest Speed 300 | 120 300 160 130 Overloaded Moves . | . . . . Propulsion Burnouts . | . . . . Robots Hopped . | . . . . Cave-ins Triggered . | . . . . Exploration Rate (%) 53 | 2 97 96 20 Regions Visited 3 Branch Regions 1 Pre-discovered Areas 1 | . . 1 . Known Exits Taken 1 | . . 1 . Unknown Exits Taken 2 | 1 1 . . Scrap Searched 10 | . . 10 . Spaces Dug . | . . . . Terrain Destroyed 77 | . 20 . 57 Melee . | . . . . Projectile 1 | . . . 1 AOE 76 | . 20 . 56 Terrain Rammed . | . . . . Walls Destroyed . | . . . . Machines Disabled . | . . . . Actions | -11 -10 -10 -8 --------- Run | Jun Mat Sub Mat Total 3955 | 14 890 2787 264 Wait 257 | . 32 195 30 Move 3418 | 9 727 2494 188 Hop . | . . . . Pick Up 29 | 1 11 11 6 Fast Attach 20 | 1 12 4 3 Attach 9 | . 3 4 2 Detach 2 | . . 2 . Swap 17 | . 11 3 3 Drop 30 | . 12 14 4 Fire 173 | 3 82 60 28 Melee . | . . . . Ram . | . . . . Kick . | . . . . Crush . | . . . . Escape Stasis . | . . . . Rewire . | . . . . Trap . | . . . . Miscellaneous . | . . . . Route ------- -11/Junkyard -10/Materials (discovered 5 exits: [*Mat x3] / *Min / *Sub) -10/Subcaves (discovered 2 exits: *Mat x2) -8/Materials (discovered 1 exit: Fac) History --------- Turn | Location | Event 1 | -11/Junkyard | Discovered new exit (range 2) 24 | -11/Junkyard | Entered Materials 270 | -10/Materials | Discovered new exit (range 3) 316 | -10/Materials | Build established: Mutant 327 | -10/Materials | Central database locked down 624 | -10/Materials | Discovered new exit (range 7) 724 | -10/Materials | Identified exit to Mines 750 | -10/Materials | Discovered new exit (range 14) 796 | -10/Materials | Repaired Lgt. Treads 960 | -10/Materials | Discovered new exit (range 15) 1174 | -10/Materials | Discovered new exit (range 10) 1357 | -10/Materials | Entered Subcaves 1362 | -10/Subcaves | Shifting Twisted Machinery released Sub. Shrapnel Launcher 1503 | -10/Subcaves | Visited triangular shrine 1513 | -10/Subcaves | Found Prototype Device 1513 | -10/Subcaves | Identified V3-11A's Pendant 1518 | -10/Subcaves | Befriended Subdweller 1563 | -10/Subcaves | Befriended Subdweller 1563 | -10/Subcaves | Befriended Subdweller 1703 | -10/Subcaves | A swath of the cavern ceiling suddenly collapsed 1874 | -10/Subcaves | Approached by friendly Subdweller 1888 | -10/Subcaves | Befriended Subdweller 1906 | -10/Subcaves | Shifting Twisted Machinery released Sub. Beam Cannon 1920 | -10/Subcaves | Shifting Twisted Machinery released Mak. Flight Unit 2656 | -10/Subcaves | Visited 4L-MR0's lab 2682 | -10/Subcaves | Found Prototype Leg 2682 | -10/Subcaves | Identified Cargo Legs 2683 | -10/Subcaves | Attached Cargo Legs, gained temporary slots: Utility x2 2778 | -10/Subcaves | Befriended Subdweller 2788 | -10/Subcaves | Befriended Subdweller 2868 | -10/Subcaves | Shifting Twisted Machinery released Shrapnel Trap 2868 | -10/Subcaves | Learned 8 Materials zone layouts 3028 | -10/Subcaves | Befriended Subdweller 3028 | -10/Subcaves | Befriended Subdweller 3192 | -10/Subcaves | A swath of the cavern ceiling suddenly collapsed 3283 | -10/Subcaves | Befriended Subdweller 3291 | -10/Subcaves | Discovered new exit (range 6) 3293 | -10/Subcaves | Befriended Subdweller 3326 | -10/Subcaves | Identified exit to Materials 3358 | -10/Subcaves | Discovered exit to Materials (range 15) 3588 | -10/Subcaves | Visited Clippyterm 3652 | -10/Subcaves | Befriended Subdweller 3662 | -10/Subcaves | Befriended Subdweller 4744 | -10/Subcaves | Shifting Twisted Machinery released Mak. Armor Plating 4804 | -10/Subcaves | Shifting Twisted Machinery released Sub. Machine Gun 4921 | -10/Subcaves | Learned location of Zion (-7) 4921 | -10/Subcaves | Met a Zionite searching for "candidates" 5030 | -10/Subcaves | Disturbed a concealed Subdweller 5032 | -10/Subcaves | Befriended Subdweller 5262 | -10/Subcaves | Entered Materials 5262 | -8/Materials | Accompanied by 2 allies 5262 | -8/Materials | Evolved 4 slots: Propulsion x1, Utility x3 5263 | -8/Materials | Identified exit to Factory 5372 | -8/Materials | Repaired Grenade Launcher 5608 | -8/Materials | Self-destructed Last Messages --------------- 05592_ U-05 Engineer destroyed. 05592_ U-05 Engineer lays Concrete. 05593_ Acquired 10 matter. 05593_ U-05 Engineer lays Concrete. 05595_ Acquired 3 matter. 05595_ U-05 Engineer lays Concrete. 05596_ Destroyed Particle Gun. 05596_ U-05 Engineer lays Concrete. 05598_ G-47 Trooper destroyed. 05598_ K-01 Serf destroyed. 05598_ U-05 Engineer lays Concrete. 05598_ G-50 Soldier destroyed. 05599_ U-05 Engineer lays Concrete. 05600_ The unstable cave ceiling collapses. 05600_ G-47 Trooper destroyed. 05602_ Y-45 Defender destroyed. 05604_ Hadron Collector disabled. 05606_ The unstable cave ceiling collapses. 05606_ O-16 Technician destroyed. 05607_ The unstable cave ceiling collapses. Map ----- +----------------------------------------------------+ | ?????????????????????????????????????############# | | ?????????????????????????????????????# """"""" # | | ?????????????????????????????????????# """"""" # | | ?????????????????????????????????????# """"""" # | | ????????????????????????????????????## """"""" # | | ????????????????????????????????????# """"""" # | | ????????????????????????????????????## # | | ?????????????????????????????????????# # | | ????????????????????????###################+###### | | ????????????????????????#############???# #??? | | ???????????????????????### ##???# #### | | ??????????????????????? ## ! *** ###### ####### | | ??????????????????????" # !%[ *** ###### # | | ??????????????"#"?????" ## = ** ### ## + | | ?????????????? #""?"""" ## " # # """ " | | ?????????????? # ## """ # # """ " | | ?????????????? # ! """" ## "" # !! # """ " | | ?????????????? # ## # ! # | | ?????????????? # ########/### ! # | | ?????????????### #### % # | | ???????????? ### #### ! ####### | | ??????????? r % # #####+## %#########??? | | ??????????? # # ##??? | | ???????????? !* # + """ ##??? | | ???????????????## = R """" +] # """ ##??? | | ###?????## #####= @ """"""" # # """ ##??? | | ?????????# # [ =# # """ """ # # ##??? | | ?????????# # #### *%= # !# ##### | | ??######## + #### ! #!%############ | | ??# # #######+######## [# # | | ??# # # # %] !=# # | | ??# # # """ # [ # + | | ??# ############### "R" + """% # # | | ??# # #??## " " # """! ##/#+###+## | | ??# # #??## # """ # | | ??# + #??## """ ## + | | ??# # """ #??## """ ## ########### | | ??# # """ #??## """ ## """ ########### | | ??# # """ #??## ## """ ########### | | ??# # #??############ """ # ## | | ??# # #??############ # """ ""##[ | | ??# ###########?????######### # """ T"### | | ??# #???????????????######### """ # """ ""### | | ??# #???????????????## # "" # ##? | | ??# #???????????????## # """ # """ ##? | | ### ########????????## """ + # """ ##? | | # # #????????## """ # # """ ##? | | # # #????????## """ # "" # ##? | | # # #????????## # G" ###+#######? | | + + #????????######### "" ####? | +----------------------------------------------------+ Best States ------------- Heat Dissipation 45 Energy Generation 15 Energy Capacity 250 Matter Stores 300 Matter Capacity 300 Sight Range 16 Terrain Scan Density 10 Utility Shielding 33 Evasion (%) 55 Recoil Reduction 2 Item Schematics ----------------- None Robot Schematics ------------------ None Fabricated ------------ Nothing Alien Tech Used ----------------- None Achievements -------------- None Challenges ------------ None Game ------ Seed CoolantStealthMinigun Manual? 0 Play Time 00:54:17 Cumulative 70.8 hours Start 2023.08.15 @ 15:28:16 End 2023.08.15 @ 17:08:44 Sessions 1 Manual Loads 0 Difficulty Rogue Special Mode None Game No. 39 Rogue 39 Adventurer 0 Explorer 0 Win Type - Total 0 Types 0/0/0/0/0/0/0/0/0 Lore% 35 Gallery% 35 Achievement% 35 Wizard Run 0 Options --------- ASCII 0 Keyboard 0 Movement Mouse Keybinds 0 Fullscreen 1 Font 16/SmallcapsGlow Map View 82x54 Tactical HUD 1 Map Filters NONE Filters NONE Steam 1 RUN: f24e275a-48c0-4ade-ad8b-e6a4c84957e2